[Event "Serbian League 2024"]
[Site "Bajina Basta"]
[Date "2024.09.29"]
[Round "3.7"]
[White "Nadj Hedjesi, Balind"]
[Black "Adhiban, B.."]
[Result "0-1"]
[ECO "B20"]
[WhiteElo "2212"]
[BlackElo "2537"]
[Annotator "TA"]
[PlyCount "62"]
[EventDate "2024.09.26"]
[EventType "team-tourn"]
[EventCountry "SRB"]
[SourceTitle "playchess.com"]
[Source "ChessBase"]
[SourceQuality "1"]
[TimeControl "40/5400+30:1800+30"]

{[%evp 9,62,-27,0,-9,0,0,0,-8,15,-57,-55,-72,-59,-58,-69,-85,-76,-81,-65,-103,-110,-154,-156,-170,-173,-208,-220,-220,-212,-216,-223,-208,-220,-310,-212,-347,-331,-430,-426,-667,-659,-604,-649,-617,-608,-1577,-1561,-1483,-1075,-1046,-1052,-1034,-1034,-29982,-2366]} 1. e4 {[%emt 0:00:13]} c5 {[%emt 0:00:07]} 2. a3 {[%emt 0:01:10]} g6 {[%emt 0:00:05]} 3. Nc3 {[%emt 0:00:38]} Bg7 {[%emt 0:00:15]} 4. Bc4 {[%emt 0:01:12]} Nc6 {[%emt 0:01:17]} 5. h4 {[%emt 0:01:00]} h6 {[%emt 0:00:18]} 6. d3 {[%emt 0:02:24]} d6 {[%emt 0:12:22]} 7. Ba2 {[%emt 0:11:23]} Nf6 {[%emt 0:15:25]} 8. Nge2 {[%emt 0:02:56] The position is equal.} e6 {[%emt 0:10:42]} 9. Ng3 {[%emt 0:08:07]} ({White should try} 9. Be3 $11) 9... d5 $15 {[%emt 0:08:06]} 10. h5 {[%emt 0:05:36]} g5 {[%emt 0:00:54]} 11. O-O {[%emt 0:01:07]} d4 {[%emt 0:02:18]} 12. Nce2 {[%emt 0:05:33]} Ne5 {[%emt 0:00:28]} 13. b4 {[%emt 0:03:25]} b6 {[%emt 0:00:07] Black is more active.} 14. bxc5 {[%emt 0:09:07]} bxc5 {[%emt 0:00:02]} 15. f4 {[%emt 0:01:22]} gxf4 {[%emt 0:00:08]} 16. Bxf4 {[%emt 0:05:32]} Nfg4 {[%emt 0:00:05]} 17. Qe1 {[%emt 0:12:40]} Bf6 {[%emt 0:04:14]} 18. Nh1 {[%emt 0:08:11]} Rg8 {[%emt 0:02:37]} 19. Qg3 {[%emt 0:06:36]} Bh4 {[%emt 0:18:47]} 20. Qh3 {[%emt 0:00:57]} Rb8 {[%emt 0:07:12]} 21. Rab1 {[%emt 0:00:52] Dodges Rb2} (21. Bb3 $142) 21... Rb6 {[%emt 0:01:04]} 22. a4 {[%emt 0:05:56]} (22. Bb3 $142) 22... Bg5 $19 {[%emt 0:01:21]} 23. Nf2 {[%emt 0:02:14]} Bxf4 {[%emt 0:01:51]} 24. Nxg4 {[%emt 0:01:48]} (24. Nxf4 $142 Ne3 25. Kh1) 24... Rxb1 {[%emt 0:00:25]} 25. Bxb1 {[%emt 0:00:18] White is weak on the dark squares} Nxg4 {[%emt 0:01:26]} 26. Nxf4 {[%emt 0:00:41]} Ne3 {[%emt 0:00:24][%cal Oe6e5] [#] aiming for ...e5!} 27. Rf3 {[%emt 0:02:19]} e5 {[%emt 0:00:47][%csl LRf4,LRh3]} 28. Rg3 {[%emt 0:00:13]} Rxg3 {[%emt 0:00:31]} (28... exf4 $2 {perishes.} 29. Rxg8+ Ke7 30. Qh4+ (30. Qxc8 Qxc8 31. Rxc8 f5 $18) (30. Rxd8 Bxh3 31. Ra8 Be6 $18) 30... f6 31. Rxd8 $18) 29. Qxg3 {[%emt 0:00:02]} exf4 {[%emt 0:00:09]} 30. Qg8+ {[%emt 0:00:43]} Ke7 {[%emt 0:00:04]} 31. Qg7 {[%emt 0:00:14]} Be6 {[%emt 0:00:58] Black took control after the opening.   Weighted Error Value: White=0.91/Black=0.42.  Mistake:       	White=4     	---        Inaccurate:     	White=2     	Black=1      OK:         	White=6     	Black=11     Best:        	---       	Black=2} (31... Qa5 $142 32. Qe5+ Be6 33. c3 Qxc3 (33... dxc3 $2 34. Qxf4 c2 35. Qh4+ Kd7 36. Bxc2 $19) 34. Qc7+ Kf8 35. Qd6+ Kg7 36. Qe5+ Kh7 37. Qxf4 Qc1+ 38. Kh2 Nf1+ (38... Qxb1 39. e5 Ng4+ 40. Kg3 Qxd3+ 41. Qf3 Qxf3+ 42. gxf3 d3 43. fxg4 d2 44. Kf4 d1=Q 45. g5 Qd2+ 46. Kg3 hxg5 47. a5 Bd5 48. Kg4 Qf4+ 49. Kh3 Qh4#) 39. Qxf1 Qxf1 40. Bc2 Qc1 (40... Qf4+ {gets mated.} 41. Kh1 Qc1+ 42. Kh2 Qxc2 43. Kg3 Qxd3+ 44. Kh2 Qxe4 45. Kg1 Bd5 46. Kf1 Qxg2+ 47. Ke1 Bf3 48. a5 Qe2#) 41. Bb3 Bxb3 (41... Qf4+ 42. Kh1 Bxb3 43. Kg1 Qg3 44. a5 c4 45. Kf1 cxd3 46. a6 d2 47. Kg1 d1=Q#) 42. Kg3 Qg1 (42... Bxa4 43. Kh2 Qe3 44. g3 Qf2+ 45. Kh3 Bd7+ 46. g4 Qg1 47. e5 Be6 48. Kh4 Qxg4#) 43. Kh3 Be6+ (43... Bxa4 44. Kg3 f6 45. e5 fxe5 46. Kg4 Bd7+ 47. Kg3 Kg8 48. Kh4 Qh2#) 44. Kg3 a5 45. Kf4 Qe3+ (45... Qxg2 $2 {leads to mate.} 46. Ke5 Qg3+ 47. Kf6 Qg5#) 46. Ke5 Qg3+ 47. Kf6 Qg5#) 0-1

[Event "Serbian League 2024"]
[Site "Bajina Basta"]
[Date "2024.09.29"]
[Round "3.8"]
[White "Can, Emre"]
[Black "Yilmaz, Baver"]
[Result "1-0"]
[ECO "B22"]
[WhiteElo "2547"]
[BlackElo "2202"]
[Annotator "TA"]
[PlyCount "129"]
[EventDate "2024.09.26"]
[EventType "team-tourn"]
[EventCountry "SRB"]
[SourceTitle "playchess.com"]
[Source "ChessBase"]
[SourceQuality "1"]
[TimeControl "40/5400+30:1800+30"]

{[%evp 9,129,0,19,10,36,-11,4,-10,17,-46,48,15,83,91,95,78,94,-1,79,0,69,-34,46,44,91,62,73,44,132,95,148,138,178,151,198,195,215,218,213,217,218,128,190,76,167,91,88,27,110,27,107,88,107,118,123,134,134,98,91,98,100,99,146,136,136,136,164,114,124,124,163,168,143,128,195,183,194,152,204,204,301,231,273,233,412,411,434,434,401,396,497,421,493,410,509,508,508,461,427,350,664,660,612,605,838,852,1270,1240,1246,1240,1508,1492,1555,1472,1596,1518,1612,1595,1556,1600,7103,7103]} 1. e4 {[%emt 0:00:11]} c5 {[%emt 0:00:23]} 2. Nf3 {[%emt 0:00:14]} e6 {[%emt 0:00:14]} 3. c3 {[%emt 0:00:21]} Nf6 {[%emt 0:00:12]} 4. e5 {[%emt 0:00:14]} Nd5 {[%emt 0:00:06]} 5. a3 {[%emt 0:00:12]} d6 {[%emt 0:01:21]} 6. d4 {[%emt 0:00:08] B22: Siciliaans: 2 c3.} cxd4 $1 {[%emt 0:00:33] Sterk} 7. c4 {[%emt 0:00:14] Fout (0.5)} (7. cxd4 $14 Be7 8. exd6 Qxd6 9. Nc3) 7... Nc7 {[%emt 0:02:31] [#] En nu zou ...dxe5 winnen.} 8. Qxd4 {[%emt 0:00:56] Zwart moet nu Bg5 voorkomen. OK. De stelling is in evenwicht.} Nc6 {[%emt 0:01:26] Beste (Gemakkelijk)} 9. Qc3 {[%emt 0:00:07] Fout (0.6)} (9. Qf4 $1 $11) {Zwart zou moeten spelen} 9... dxe5 {[%emt 0:02:21] Fout (0.9)} (9... f6 $1 $15) 10. Nxe5 $14 {[%emt 0:00:16] Onnauwkeurig} Qf6 {[%emt 0:06:25] Fout (0.7)} (10... Nd4 $1 $11) 11. Nxc6 $16 {[%emt 0:02:06] Beste (Gemakkelijk)} bxc6 {[%emt 0:01:10]} 12. Qxf6 $146 {[%emt 0:17:59] OK} ({Predecessor:} 12. Be3 e5 13. Nd2 Be7 14. Ne4 Qe6 15. Nc5 Qf6 16. Bd3 O-O 17. O-O Ne6 18. Ne4 {1-0 Sychev,K (2542)-Markov,M (2283) Wch Rapid Samarkand 2023 (8)}) 12... gxf6 {[%emt 0:00:12]} 13. b4 {[%emt 0:01:00] Fout (1.0)} (13. Be3 $16) 13... e5 {[%emt 0:06:01] Fout (0.8)} (13... a5 $11) 14. Nc3 {[%emt 0:14:53] Fout (0.8)} (14. g3 $16) 14... Ne6 {[%emt 0:02:47] Fout (0.7)} (14... a5 $11) 15. Bb2 {[%emt 0:01:18] Fout (1.0)} (15. Bd3 $14) 15... Bg7 {[%emt 0:10:31] Fout (0.8)} (15... Rb8 $15) 16. Bd3 {[%emt 0:06:39]} Bd7 {[%emt 0:02:22] was beter. Fout (0.5)} (16... a5 $14) 17. O-O {[%emt 0:11:21] Onnauwkeurig} O-O {[%emt 0:06:17]} 18. Ne2 {[%emt 0:41:21] Onnauwkeurig} Rad8 {[%emt 0:05:57] Fout (0.9)} (18... a5 $14) 19. Rad1 {[%emt 0:00:00]} {Zwart zou moeten proberen} c5 {[%emt 0:04:31] Fout (0.5)} (19... a5) 20. b5 {[%emt 0:00:00] OK} Nd4 {[%emt 0:02:49]} 21. Bxd4 {[%emt 0:00:00]} exd4 {[%emt 0:03:37] Fout (0.5)} (21... cxd4 $16 22. Ng3 Rb8) 22. Ng3 $18 {[%emt 0:00:00] OK} Rc8 {[%emt 0:02:50] Zwart is zwak op de lichte velden} 23. a4 {[%emt 0:00:00][%cal Ba3a4,Ba4a5][%mdl 32] EV=12.21. Goes to a6 (dbg)). OK} Rfd8 {[%emt 0:02:06]} 24. a5 {[%emt 0:00:00] OK} Bf8 {[%emt 0:01:54] OK} 25. Ne4 {[%emt 0:00:00] Fout (0.9)} (25. a6 $18) 25... Kg7 {[%emt 0:03:05] was een poging waard. Fout (0.6)} (25... Bxb5 $16 26. cxb5 (26. Nxf6+ Kg7 $16) 26... c4) 26. f4 {[%emt 0:00:00] Fout (1.1)} (26. Ng3 $18) 26... f5 {[%emt 0:02:35] pakt misschien beter uit. Fout (0.9)} (26... Bxb5 $16 27. cxb5 c4) 27. Ng3 {[%emt 0:00:00] Fout (0.8)} (27. Nd2 $18) 27... Kg6 $16 {[%emt 0:01:49] Beste} 28. Kf2 {[%emt 0:00:00] Wit is actiever. Fout (0.6)} (28. Rb1 $16) 28... Bd6 {[%emt 0:01:28] [#] Houdt de partij in balans. Fout (0.8)} (28... h5 $1 $11) 29. Kf3 {[%emt 0:00:00] Fout (0.8)} (29. Ne2 $1 $16) 29... Bc7 {[%emt 0:05:26] blijft gelijk. Fout (0.8)} (29... Rh8 $11) 30. Rfe1 {[%emt 0:00:00] OK} Re8 {[%emt 0:02:01]} (30... Bxa5 $2 {slaat de verkeerde figuur.} 31. Re5 $18) 31. a6 {[%emt 0:00:00] OK} Ba5 {[%emt 0:04:34] OK} 32. Rxe8 {[%emt 0:00:00] OK} Rxe8 {[%emt 0:00:06]} 33. Nf1 {[%emt 0:00:00] Remt Re3+. OK} Kf6 {[%emt 0:02:23] OK} 34. Ra1 {[%emt 0:00:00]} Bc7 {[%emt 0:01:55] OK} 35. g3 {[%emt 0:00:00] OK} {Beter is} h6 {[%emt 0:01:01] Fout (0.5)} (35... h5) 36. Kf2 {[%emt 0:00:00] OK} Re7 {[%emt 0:01:30] OK} 37. Ra3 {[%emt 0:00:00]} Re8 {[%emt 0:01:22]} {Wit zou moeten spelen} 38. Be2 {[%emt 0:00:36] Fout (0.5)} (38. Ra2 $18) 38... Be6 {[%emt 0:01:17]} 39. Nd2 {[%emt 0:00:31] OK} Rd8 {[%emt 0:01:16] Onnauwkeurig} 40. Rb3 {[%emt 0:01:43]} Rb8 {[%emt 0:01:45]} 41. Nf3 {[%emt 0:31:08]} Rb6 {[%emt 0:31:24] is een betere verdediging. Fout (0.7)} (41... Bc8 $16) 42. Rb1 $18 {[%emt 0:00:15] OK} Rd6 {[%emt 0:06:51] Hoopt vervolgens op ...d3.} 43. Ne5 {[%emt 0:02:20]} Bc8 {[%emt 0:00:00] Kan voordeliger zijn. Fout (0.5)} (43... Rb6 $16) 44. Bf3 {[%emt 0:00:00] OK} Bb6 {[%emt 0:00:00] Kan gunstiger zijn. Fout (1.0)} (44... Be6 45. Rc1 Bd7) 45. Bd5 {[%emt 0:00:00][%cal Rd5f7] OK} Be6 {[%emt 0:00:00] Beste} 46. Bxe6 {[%emt 0:00:00] OK} Kxe6 {[%emt 0:00:00][%mdl 4096] Eindspel. Kan positief uitpakken. KRB-KRN. Fout (1.8)} (46... fxe6 47. h3 Bc7) 47. Re1 {[%emt 0:00:00] Beste} Kf6 {[%emt 0:00:00]} 48. Nd3 {[%emt 0:00:00] OK} Re6 {[%emt 0:00:00]} 49. Re5 {[%emt 0:00:00] OK} Re7 {[%emt 0:00:00]} 50. Kf3 {[%emt 0:00:00]} (50. Nxc5 $2 {vergaat.} d3 51. Rd5 d2 52. Rxd2 (52. Rd6+ $2 Kg7 $19) 52... Bxc5+ 53. Kf1 Rc7 $19) 50... Rc7 {[%emt 0:00:00]} 51. Re8 {[%emt 0:00:00]} Re7 {[%emt 0:00:00] OK} 52. Rxe7 {[%emt 0:00:00] OK} Kxe7 {[%emt 0:00:00] KB-KN} 53. g4 {[%emt 0:00:00]} fxg4+ {[%emt 0:00:00] OK} 54. Kxg4 {[%emt 0:00:00]} Ke6 $2 {[%emt 0:00:00] Fout (3.1)} (54... Kf6 55. f5 Ke7) 55. f5+ {[%emt 0:00:00] OK. Wit is duidelijk aan het winnen.} Kf6 {[%emt 0:00:00]} 56. Kf4 {[%emt 0:00:36]} Bc7+ {[%emt 0:00:12]} 57. Ke4 {[%emt 0:00:05]} Bxh2 {[%emt 0:00:44]} 58. Nf4 {[%emt 0:03:08]} d3 {[%emt 0:00:27]} 59. Nxd3 {[%emt 0:00:05]} Bb8 {[%emt 0:00:38]} 60. Nxc5 {[%emt 0:00:50]} Ke7 {[%emt 0:00:06] Remt Nd7.} 61. Nd3 {[%emt 0:00:20]} h5 {[%emt 0:00:59]} 62. Nb4 {[%emt 0:03:14]} Kd6 {[%emt 0:01:06]} 63. Nc6 {[%emt 0:00:09]} Bc7 {[%emt 0:01:18]} 64. Nxa7 {[%emt 0:00:08] Nc8+ is de sterke dreiging.} Kc5 {[%emt 0:00:04]} 65. Nc8 {[%emt 0:08:22] Blunder waarde: Wit=0.25 (precies) /Zwart=0.65.  Fout:        	Wit=11     	Zwart=19     Onnauwkeurig:    	Wit=3      	Zwart=1      OK:         	Wit=21     	Zwart=7      Beste:        	Wit=2      	Zwart=3      Sterk:        	---       	Zwart=1} 1-0

[Event "Serbian League 2024"]
[Site "Bajina Basta"]
[Date "2024.09.29"]
[Round "3.9"]
[White "Szalai, Kornel"]
[Black "Bogosavljevic, Boban"]
[Result "0-1"]
[ECO "A13"]
[WhiteElo "2388"]
[BlackElo "2486"]
[Annotator "RC"]
[PlyCount "192"]
[EventDate "2024.09.26"]
[EventType "team-tourn"]
[EventCountry "SRB"]
[SourceTitle "playchess.com"]
[Source "ChessBase"]
[SourceQuality "1"]
[TimeControl "40/5400+30:1800+30"]

1. Nf3 {[%emt 0:00:45]} d5 {[%emt 0:02:13]} 2. e3 {[%emt 0:03:57]} Nf6 {[%emt 0:07:15]} 3. c4 {[%emt 0:00:15]} e6 {[%emt 0:01:08]} 4. b3 {[%emt 0:03:27]} b6 {[%emt 0:02:21]} 5. g3 {[%emt 0:06:53]} Bb7 {[%emt 0:03:28]} 6. Bg2 {[%emt 0:00:52]} Nbd7 {[%emt 0:00:59]} 7. O-O {[%emt 0:02:13]} Bd6 {[%emt 0:00:58]} 8. Bb2 {[%emt 0:07:34]} O-O {[%emt 0:03:51]} 9. Nc3 {[%emt 0:16:03]} a6 {[%emt 0:05:10]} 10. Qe2 {[%emt 0:02:04]} Qe7 {[%emt 0:02:59]} 11. d4 {[%emt 0:11:32]} Rfe8 {[%emt 0:04:48]} 12. Nh4 {[%emt 0:09:34]} Ne4 {[%emt 0:18:48]} 13. cxd5 {[%emt 0:00:41]} exd5 {[%emt 0:00:13]} 14. Nf5 {[%emt 0:01:32]} Qf6 {[%emt 0:00:14]} 15. Nxd6 {[%emt 0:05:27]} Qxd6 {[%emt 0:00:56]} 16. Rac1 {[%emt 0:00:30]} Ndf6 {[%emt 0:09:08]} 17. Rc2 {[%emt 0:01:11]} Ng5 {[%emt 0:09:53]} 18. Rfc1 {[%emt 0:08:59]} h5 {[%emt 0:05:43]} 19. Nb1 {[%emt 0:02:25]} c6 {[%emt 0:00:39]} 20. Nd2 {[%emt 0:04:34]} Qe6 {[%emt 0:09:38]} 21. Kh1 {[%emt 0:03:39]} Qf5 {[%emt 0:05:06]} 22. Nf3 {[%emt 0:02:35]} a5 {[%emt 0:01:13]} 23. Nxg5 {[%emt 0:01:53]} Qxg5 {[%emt 0:00:07]} 24. Qf3 {[%emt 0:00:27]} a4 {[%emt 0:01:07]} 25. bxa4 {[%emt 0:01:23]} Rxa4 {[%emt 0:00:19]} 26. a3 {[%emt 0:00:02]} Ne4 {[%emt 0:02:03]} 27. Qd1 {[%emt 0:00:33]} Rc4 {[%emt 0:02:05]} 28. Kg1 {[%emt 0:01:27]} b5 {[%emt 0:00:12]} 29. Bf1 {[%emt 0:01:51]} Bc8 {[%emt 0:00:23]} 30. Bxc4 {[%emt 0:00:28]} bxc4 {[%emt 0:00:10]} 31. Qf3 {[%emt 0:00:07]} Qg6 {[%emt 0:01:07]} 32. h4 {[%emt 0:00:25]} Bf5 {[%emt 0:00:59]} 33. Qf4 {[%emt 0:00:20]} Nxg3 {[%emt 0:01:14]} 34. Qxg3 {[%emt 0:00:40]} Bxc2 {[%emt 0:00:08]} 35. Qxg6 {[%emt 0:00:22]} Bxg6 {[%emt 0:00:02]} 36. a4 {[%emt 0:00:23]} Bf5 {[%emt 0:01:02]} 37. a5 {[%emt 0:00:50]} Rb8 {[%emt 0:00:43]} 38. Bc3 {[%emt 0:00:43]} Bc8 {[%emt 0:00:09]} 39. Rc2 {[%emt 0:00:48]} Rb3 {[%emt 0:00:14]} 40. Kg2 {[%emt 0:00:30]} Kh7 {[%emt 0:00:43]} 41. Kg3 {[%emt 0:02:59]} f6 {[%emt 0:02:59]} 42. Kf4 {[%emt 0:19:32]} Kg6 {[%emt 0:02:57]} 43. f3 {[%emt 0:00:35]} Kf7 {[%emt 0:01:01]} 44. e4 {[%emt 0:00:21]} Ke6 {[%emt 0:09:30]} 45. Rc1 {[%emt 0:02:01]} Ba6 {[%emt 0:00:25]} 46. Ke3 {[%emt 0:00:47]} Kd7 {[%emt 0:06:03]} 47. Kd2 {[%emt 0:00:43]} c5 {[%emt 0:00:23]} 48. Ke2 {[%emt 0:02:05]} cxd4 {[%emt 0:02:50]} 49. Bxd4 {[%emt 0:00:04]} dxe4 {[%emt 0:00:08]} 50. fxe4 {[%emt 0:00:09]} Rh3 {[%emt 0:00:37]} 51. Rg1 {[%emt 0:01:13]} c3+ {[%emt 0:00:58]} 52. Kf2 {[%emt 0:02:04]} Rh2+ {[%emt 0:05:05]} 53. Ke3 {[%emt 0:01:25]} Rh3+ {[%emt 0:02:25]} 54. Kf2 {[%emt 0:00:04]} c2 {[%emt 0:00:39]} 55. Rxg7+ {[%emt 0:00:15]} Kd6 {[%emt 0:00:07]} 56. Bb2 {[%emt 0:00:28]} Rb3 {[%emt 0:01:19]} 57. Bc1 {[%emt 0:00:04]} Bb7 {[%emt 0:01:04]} 58. Ke2 {[%emt 0:03:58]} Bxe4 {[%emt 0:00:31]} 59. a6 {[%emt 0:00:12]} Rh3 {[%emt 0:00:12]} 60. a7 {[%emt 0:01:00]} Rxh4 {[%emt 0:00:53]} 61. Ba3+ {[%emt 0:00:17]} Ke6 {[%emt 0:00:04]} 62. Re7+ {[%emt 0:00:35]} Kf5 {[%emt 0:00:05]} 63. Re8 {[%emt 0:00:27]} Rh2+ {[%emt 0:00:51]} 64. Ke1 {[%emt 0:00:33]} Rh1+ {[%emt 0:00:10]} 65. Ke2 {[%emt 0:00:33]} Rh2+ {[%emt 0:01:43]} 66. Ke1 {[%emt 0:00:11]} Rh3 {[%emt 0:00:31]} 67. Rxe4 {[%emt 0:00:54]} Rxa3 {[%emt 0:00:07]} 68. Rc4 {[%emt 0:00:02]} Rxa7 {[%emt 0:00:51]} 69. Rxc2 {[%emt 0:00:05]} Kg4 {[%emt 0:00:18]} 70. Kf2 {[%emt 0:00:49]} f5 {[%emt 0:00:05]} 71. Rc8 {[%emt 0:00:54]} Ra2+ {[%emt 0:00:03]} 72. Kg1 {[%emt 0:00:05]} f4 {[%emt 0:00:15]} 73. Rg8+ {[%emt 0:01:00]} Kf3 {[%emt 0:00:05]} 74. Rh8 {[%emt 0:00:18]} Ra1+ {[%emt 0:01:55]} 75. Kh2 {[%emt 0:00:05]} Ra5 {[%emt 0:00:10]} 76. Kg1 {[%emt 0:00:59]} Re5 {[%emt 0:00:37]} 77. Ra8 {[%emt 0:00:27]} Re1+ {[%emt 0:00:30]} 78. Kh2 {[%emt 0:00:05]} Re2+ {[%emt 0:00:02]} 79. Kg1 {[%emt 0:00:11]} h4 {[%emt 0:00:08]} 80. Ra7 {[%emt 0:00:39]} Re1+ {[%emt 0:00:05]} 81. Kh2 {[%emt 0:00:04]} Re2+ {[%emt 0:00:03]} 82. Kg1 {[%emt 0:00:04]} Rd2 {[%emt 0:00:36]} 83. Ra8 {[%emt 0:00:31]} Rd1+ {[%emt 0:00:21]} 84. Kh2 {[%emt 0:00:05]} Ke3 {[%emt 0:00:14]} 85. Re8+ {[%emt 0:02:06]} Kf2 {[%emt 0:00:08]} 86. Rb8 {[%emt 0:00:59]} f3 {[%emt 0:00:18]} 87. Rb4 {[%emt 0:00:22]} Ke2 {[%emt 0:01:25]} 88. Re4+ {[%emt 0:00:45]} Kd3 {[%emt 0:00:06]} 89. Rf4 {[%emt 0:00:27]} Ke3 {[%emt 0:00:07]} 90. Rf7 {[%emt 0:00:30]} f2 {[%emt 0:00:15]} 91. Re7+ {[%emt 0:00:05]} Kd2 {[%emt 0:00:12]} 92. Rd7+ {[%emt 0:00:02]} Kc2 {[%emt 0:00:26]} 93. Rc7+ {[%emt 0:00:31]} Kb3 {[%emt 0:00:14]} 94. Rb7+ {[%emt 0:01:14]} Kc4 {[%emt 0:00:13]} 95. Rc7+ {[%emt 0:00:11]} Kb5 {[%emt 0:00:08]} 96. Rb7+ {[%emt 0:00:03]} Kc6 {[%emt 0:00:06]} 0-1

[Event "Serbian League 2024"]
[Site "Bajina Basta"]
[Date "2024.09.29"]
[Round "3.10"]
[White "Zajic, Milan"]
[Black "Farkas, Tibor"]
[Result "1/2-1/2"]
[ECO "B90"]
[WhiteElo "2404"]
[BlackElo "2209"]
[Annotator "RC"]
[PlyCount "51"]
[EventDate "2024.09.26"]
[EventType "team-tourn"]
[EventCountry "SRB"]
[SourceTitle "playchess.com"]
[Source "ChessBase"]
[SourceQuality "1"]
[TimeControl "40/5400+30:1800+30"]

1. e4 {[%emt 0:00:50]} c5 {[%emt 0:00:21]} 2. Nf3 {[%emt 0:00:06]} d6 {[%emt 0:01:11]} 3. d4 {[%emt 0:00:02]} cxd4 {[%emt 0:00:29]} 4. Nxd4 {[%emt 0:00:02]} Nf6 {[%emt 0:00:24]} 5. Nc3 {[%emt 0:00:01]} a6 {[%emt 0:00:46]} 6. Bd3 {[%emt 0:00:02]} Nc6 {[%emt 0:01:48]} 7. Nxc6 {[%emt 0:00:02]} bxc6 {[%emt 0:00:11]} 8. O-O {[%emt 0:00:03]} e5 {[%emt 0:01:19]} 9. b3 {[%emt 0:03:25]} Be7 {[%emt 0:02:40]} 10. Bb2 {[%emt 0:00:17]} O-O {[%emt 0:02:35]} 11. Ne2 {[%emt 0:01:27]} a5 {[%emt 0:11:39]} 12. c4 {[%emt 0:00:20]} Nd7 {[%emt 0:03:08]} 13. Bc2 {[%emt 0:03:22]} Qb6 {[%emt 0:04:38]} 14. Kh1 {[%emt 0:00:37]} a4 {[%emt 0:02:13]} 15. f4 {[%emt 0:05:45]} axb3 {[%emt 0:01:26]} 16. axb3 {[%emt 0:00:21]} Rxa1 {[%emt 0:00:16]} 17. Bxa1 {[%emt 0:02:09]} exf4 {[%emt 0:12:26]} 18. Nxf4 {[%emt 0:04:31]} Ne5 {[%emt 0:00:37]} 19. Qe1 {[%emt 1:16:38]} Bg5 20. h3 Bxf4 21. Rxf4 Be6 22. Rf1 f6 23. Qd2 c5 24. Bc3 Ra8 25. Rd1 {[%emt 0:00:00]} Ra6 26. Ra1 {[%emt 0:00:00]} 1/2-1/2

[Event "Serbian League 2024"]
[Site "Bajina Basta"]
[Date "2024.09.29"]
[Round "3.11"]
[White "Gabric, Goran"]
[Black "Roganovic, Milos"]
[Result "0-1"]
[ECO "B20"]
[WhiteElo "2185"]
[BlackElo "2434"]
[Annotator "RC"]
[PlyCount "118"]
[EventDate "2024.09.26"]
[EventType "team-tourn"]
[EventCountry "SRB"]
[SourceTitle "playchess.com"]
[Source "ChessBase"]
[SourceQuality "1"]
[TimeControl "40/5400+30:1800+30"]

1. e4 {[%emt 0:00:10]} c5 {[%emt 0:00:11]} 2. a3 {[%emt 0:00:16]} e6 {[%emt 0:04:00]} 3. b4 {[%emt 0:00:35]} d5 {[%emt 0:02:25]} 4. exd5 {[%emt 0:02:12]} exd5 {[%emt 0:00:45]} 5. bxc5 {[%emt 0:01:02]} Bxc5 {[%emt 0:00:19]} 6. d4 {[%emt 0:08:56]} Bd6 {[%emt 0:00:17]} 7. Nf3 {[%emt 0:01:39]} Nf6 {[%emt 0:00:42]} 8. Bg5 {[%emt 0:03:34]} O-O {[%emt 0:00:47]} 9. Be2 {[%emt 0:01:22]} Nbd7 {[%emt 0:02:44]} 10. O-O {[%emt 0:00:45]} Qc7 {[%emt 0:00:41]} 11. Qd3 {[%emt 0:04:49]} Ne4 {[%emt 0:01:55]} 12. Bh4 {[%emt 0:04:31]} Nb6 {[%emt 0:01:36]} 13. Qb3 {[%emt 0:09:19]} Bg4 {[%emt 0:07:45]} 14. Bg3 {[%emt 0:11:06]} Rac8 {[%emt 0:02:18]} 15. Bxd6 {[%emt 0:07:07]} Nxd6 {[%emt 0:00:13]} 16. Rc1 {[%emt 0:04:07]} Rfe8 {[%emt 0:02:00]} 17. Bf1 {[%emt 0:00:30]} Ndc4 {[%emt 0:05:34]} 18. a4 {[%emt 0:05:55]} Qf4 {[%emt 0:02:05]} 19. Na3 {[%emt 0:00:54]} Na5 {[%emt 0:19:28]} 20. Qd3 {[%emt 0:04:12]} Bxf3 {[%emt 0:00:22]} 21. Qxf3 {[%emt 0:00:52]} Qxf3 {[%emt 0:00:23]} 22. gxf3 {[%emt 0:00:07]} a6 {[%emt 0:00:06]} 23. Bd3 {[%emt 0:09:24]} g6 {[%emt 0:01:49]} 24. Rcb1 {[%emt 0:02:07]} Nd7 {[%emt 0:44:05]} 25. Rb4 {[%emt 0:04:29]} Rc7 {[%emt 0:00:00]} 26. Rb2 {[%emt 0:13:30]} Nf8 {[%emt 0:01:00]} 27. Rd1 {[%emt 0:00:00]} Ne6 {[%emt 0:00:00]} 28. Bf1 {[%emt 0:01:00]} Rc3 {[%emt 0:00:00]} 29. Nb1 {[%emt 0:00:00]} Rxf3 {[%emt 0:00:00]} 30. Bg2 {[%emt 0:00:00]} Rf5 {[%emt 0:00:00]} 31. c4 {[%emt 0:00:28]} Nxc4 {[%emt 0:00:00]} 32. Rxb7 {[%emt 0:00:06]} Nxd4 {[%emt 0:00:00]} 33. Nc3 {[%emt 0:00:14]} Ne2+ {[%emt 0:00:00]} 34. Nxe2 {[%emt 0:00:09]} Rxe2 {[%emt 0:00:00]} 35. Bxd5 {[%emt 0:00:54]} Nd2 {[%emt 0:00:00]} 36. Rd7 {[%emt 0:01:13]} Ne4 {[%emt 0:00:00]} 37. Bxe4 {[%emt 0:00:52]} Rxe4 {[%emt 0:00:00]} 38. R7d4 {[%emt 0:00:16]} Re2 {[%emt 0:00:00]} 39. f4 {[%emt 0:01:18]} Ra2 {[%emt 0:00:00]} 40. Rc4 {[%emt 0:00:00]} Ra5 {[%emt 0:00:00]} 41. Rdd4 {[%emt 0:04:54]} Kg7 {[%emt 0:00:00]} 42. h3 {[%emt 0:00:35]} Rf5 {[%emt 0:00:00]} 43. Rc6 {[%emt 0:01:05]} a5 {[%emt 0:03:48]} 44. Rcc4 {[%emt 0:02:37]} Rf6 {[%emt 0:01:01]} 45. Rd1 {[%emt 0:07:58]} Rb6 {[%emt 0:02:41]} 46. f5 {[%emt 0:01:37]} Rb4 {[%emt 0:07:17]} 47. Rxb4 {[%emt 0:04:09]} axb4 {[%emt 0:00:13]} 48. fxg6 {[%emt 0:00:05]} hxg6 {[%emt 0:00:31]} 49. Rb1 {[%emt 0:01:53]} Rxa4 {[%emt 0:00:05]} 50. Kg2 {[%emt 0:00:46]} Kh6 {[%emt 0:00:25]} 51. Rb3 {[%emt 0:01:23]} f5 {[%emt 0:00:22]} 52. Kf2 {[%emt 0:00:33]} Kg5 {[%emt 0:00:39]} 53. Kg2 {[%emt 0:00:32]} Kh4 {[%emt 0:01:56]} 54. Kh2 {[%emt 0:00:19]} g5 {[%emt 0:01:04]} 55. Kg2 {[%emt 0:00:05]} Ra2+ {[%emt 0:00:25]} 56. Kg1 {[%emt 0:00:08]} f4 {[%emt 0:00:14]} 57. Rxb4 {[%emt 0:00:28]} Kxh3 {[%emt 0:00:22]} 58. Rb3+ {[%emt 0:00:22]} Kg4 {[%emt 0:00:06]} 59. Rb4 {[%emt 0:00:13]} Kg3 {[%emt 0:00:07]} 0-1